Workbook

Sheet титульник
A1: Утверждаю
A2: Директор ОГБПОУ "ДМК"
A5: И.А.Казаченко | O5: УЧЕБНЫЙ ПЛАН
O7: программы подготовки специалистов среднего звена
A9: Приказ № 39-у от 28.02.2025
O11: Областное государственное бюджетное профессиональное образовательное учреждение "Димитровградский музыкальный колледж"
A14: Рассмотрено Педагогическим Советом Протокол № 04 от 26.02.2025
O15: наименование образовательного учреждения (организации)
O18: по специальности среднего профессионального образования
O20: 53.02.07 | U20: Теория музыки
O21: код | U21: наименование специальности
O22: по программе углубленной подготовки | AE22: на базе | AI22: основного общего образования
O24: квалификация | U24: Преподаватель, организатор музыкально-просветительской деятельности
O26: форма обучения | U26: Очная
O28: нормативный срок освоения ППССЗ | AB28: 3г 10м | AI28: год начала подготовки по УП | AS28: 2025
O30: профиль получаемого профессионального образования | AI30: Искусство и культура 53.00.00 Музыкальное искусство
AI31: при реализации программы среднего (полного) общего образования
O33: Приказ об утверждении ФГОС | Z33: от | AB33: 2021-05-17 | AG33: № | AI33: 253

Sheet сводные данные
A1: 2 Сводные данные по бюджету времени
A2: Курс | B2: Обучение по дисциплинам и междисциплинарным курсам | T2: Промежуточная аттестация | AC2: Практики | AT2: ГИА | AZ2: Каникулы | BC2: Всего
AC3: Учебная практика | AF3: Производственная практика (по профилю специальности) | AM3: Производственная практика (преддипломная) | AT3: Подго- товка | AW3: Прове- дение
B4: Всего | H4: 1 сем | N4: 2 сем | T4: Всего | W4: 1 сем | Z4: 2 сем | AC4: Всего | AF4: Всего | AI4: 1 сем | AK4: 2 сем | AM4: Всего | AP4: 1 сем | AR4: 2 сем
B5: нед. | E5: час. | H5: нед. | K5: час. | N5: нед. | Q5: час. | T5: нед. | W5: нед. | Z5: нед. | AC5: нед. | AF5: нед. | AI5: нед. | AK5: нед. | AM5: нед. | AP5: нед. | AR5: нед. | AT5: нед. | AW5: нед. | AZ5: нед. | BC5: нед.
A6: I | B6: 36 | E6: 1945/1296 | H6: 16 | K6: 864/576 | N6: 20 | Q6: 1081/720 | T6: 4 | W6: 2 | Z6: 2 | AF6: 1 | AK6: 1 | AZ6: 2 | BC6: 43
A7: II | B7: 36 | E7: 1942/1296 | H7: 16 | K7: 862/576 | N7: 20 | Q7: 1080/720 | T7: 4 | W7: 2 | Z7: 2 | AF7: 2 | AK7: 2 | AZ7: 11 | BC7: 53
A8: III | B8: 36 | E8: 1945/1296 | H8: 16 | K8: 864/576 | N8: 20 | Q8: 1081/720 | T8: 4 | W8: 2 | Z8: 2 | AF8: 2 | AK8: 2 | AZ8: 10 | BC8: 52
A9: IV | B9: 35 | E9: 1890/1260 | H9: 16 | K9: 864/576 | N9: 19 | Q9: 1026/684 | T9: 1 | W9: 1 | AM9: 1 | AP9: 1 | AT9: 1 | AW9: 3 | AZ9: 10 | BC9: 51
A10: Всего | B10: 143 | E10: 7722/5148 | K10: 3454/2304 | Q10: 4268/2844 | T10: 13 | AC10: 19 | AF10: 5 | AM10: 1 | AT10: 1 | AW10: 3 | AZ10: 33 | BC10: 199

Sheet План
A1: Индекс | B1: Наименование циклов, разделов, дисциплин, профессиональных модулей, МДК, практик | C1: Групповые, мелкогрупповые, индивидуальные формы занятий | D1: Формы промежуточной аттестации | K1: Учебная нагрузка обучающихся, ч. | U1: Распределение по курсам и семестрам | EC1: Максимальная учебная нагрузка
U2: Курс 1 | AI2: Курс 2 | AW2: Курс 3 | BK2: Курс 4 | BY2: Курс 5 | CM2: Курс 6 | DA2: Курс 7 | DO2: Курс 8
D3: Экзамены | E3: Зачеты | F3: Диффер. зачеты | G3: Курсовые проекты (работы) | H3: Итоговые письм. КР | I3: Домашние КР | J3: Другие формы контроля | L3: Максимальная | N3: Самостоятельная | P3: Обязательная | U3: Семестр 1 | AB3: Семестр 2 | AI3: Семестр 3 | AP3: Семестр 4 | AW3: Семестр 5 | BD3: Семестр 6 | BK3: Семестр 7 | BR3: Семестр 8 | BY3: Семестр 9 | CF3: Семестр A | CM3: Семестр B | CT3: Семестр C | DA3: Семестр D | DH3: Семестр E | DO3: Семестр F | DV3: Семестр G
P4: Всего | Q4: в том числе | U4: 26 нед | AB4: 26 нед | AI4: 26 нед | AP4: 26 нед | AW4: 26 нед | BD4: 26 нед | BK4: 26 нед | BR4: 26 нед | BY4: 26 нед | CF4: 26 нед | CM4: 26 нед | CT4: 26 нед | DA4: 26 нед | DH4: 26 нед | DO4: нед | DV4: нед
Q5: Теор. обучение | R5: Лаб. и пр. занятия | T5: Курс. проект. | U5: Максим. | V5: Самост. | W5: Всего | X5: в том числе | AB5: Максим. | AC5: Самост. | AD5: Всего | AE5: в том числе | AI5: Максим. | AJ5: Самост. | AK5: Всего | AL5: в том числе | AP5: Максим. | AQ5: Самост. | AR5: Всего | AS5: в том числе | AW5: Максим. | AX5: Самост. | AY5: Всего | AZ5: в том числе | BD5: Максим. | BE5: Самост. | BF5: Всего | BG5: в том числе | BK5: Максим. | BL5: Самост. | BM5: Всего | BN5: в том числе | BR5: Максим. | BS5: Самост. | BT5: Всего | BU5: в том числе | BY5: Максим. | BZ5: Самост. | CA5: Всего | CB5: в том числе | CF5: Максим. | CG5: Самост. | CH5: Всего | CI5: в том числе | CM5: Максим. | CN5: Самост. | CO5: Всего | CP5: в том числе | CT5: Максим. | CU5: Самост. | CV5: Всего | CW5: в том числе | DA5: Максим. | DB5: Самост. | DC5: Всего | DD5: в том числе | DH5: Максим. | DI5: Самост. | DJ5: Всего | DK5: в том числе | DO5: Максим. | DP5: Самост. | DQ5: Всего | DR5: в том числе | DV5: Максим. | DW5: Самост. | DX5: Всего | DY5: в том числе | EC5: Обяз. часть | ED5: Вар. часть
X6: Теор. обучение | Y6: Лаб. и пр. занятия | Z6: Лаб. занятия | AA6: Курс. проект. | AE6: Теор. обучение | AF6: Лаб. и пр. занятия | AG6: Лаб. занятия | AH6: Курс. проект. | AL6: Теор. обучение | AM6: Лаб. и пр. занятия | AN6: Лаб. занятия | AO6: Курс. проект. | AS6: Теор. обучение | AT6: Лаб. и пр. занятия | AU6: Лаб. занятия | AV6: Курс. проект. | AZ6: Теор. обучение | BA6: Лаб. и пр. занятия | BB6: Лаб. занятия | BC6: Курс. проект. | BG6: Теор. обучение | BH6: Лаб. и пр. занятия | BI6: Лаб. занятия | BJ6: Курс. проект. | BN6: Теор. обучение | BO6: Лаб. и пр. занятия | BP6: Лаб. занятия | BQ6: Курс. проект. | BU6: Теор. обучение | BV6: Лаб. и пр. занятия | BW6: Лаб. занятия | BX6: Курс. проект. | CB6: Теор. обучение | CC6: Лаб. и пр. занятия | CD6: Лаб. занятия | CE6: Курс. проект. | CI6: Теор. обучение | CJ6: Лаб. и пр. занятия | CK6: Лаб. занятия | CL6: Курс. проект. | CP6: Теор. обучение | CQ6: Лаб. и пр. занятия | CR6: Лаб. занятия | CS6: Курс. проект. | CW6: Теор. обучение | CX6: Лаб. и пр. занятия | CY6: Лаб. занятия | CZ6: Курс. проект. | DD6: Теор. обучение | DE6: Лаб. и пр. занятия | DF6: Лаб. занятия | DG6: Курс. проект. | DK6: Теор. обучение | DL6: Лаб. и пр. занятия | DM6: Лаб. занятия | DN6: Курс. проект. | DR6: Теор. обучение | DS6: Лаб. и пр. занятия | DT6: Лаб. занятия | DU6: Курс. проект. | DY6: Теор. обучение | DZ6: Лаб. и пр. занятия | EA6: Лаб. занятия | EB6: Курс. проект.
A7: 1 | B7: 2 | C7: 3 | D7: 4 | E7: 5 | F7: 6 | G7: 6 | H7: 7 | I7: 8 | J7: 7 | K7: 10 | L7: 8 | M7: 12 | N7: 9 | O7: 14 | P7: 10 | Q7: 11 | R7: 12 | S7: 18 | T7: 13 | U7: 20 | V7: 14 | W7: 15 | X7: 16 | Y7: 17 | Z7: 25 | AA7: 18 | AB7: 27 | AC7: 19 | AD7: 20 | AE7: 21 | AF7: 22 | AG7: 32 | AH7: 23 | AI7: 34 | AJ7: 24 | AK7: 25 | AL7: 26 | AM7: 27 | AN7: 39 | AO7: 28 | AP7: 41 | AQ7: 29 | AR7: 30 | AS7: 31 | AT7: 32 | AU7: 46 | AV7: 33 | AW7: 48 | AX7: 34 | AY7: 35 | AZ7: 36 | BA7: 37 | BB7: 53 | BC7: 38 | BD7: 55 | BE7: 39 | BF7: 40 | BG7: 41 | BH7: 42 | BI7: 60 | BJ7: 43 | BK7: 62 | BL7: 44 | BM7: 45 | BN7: 46 | BO7: 47 | BP7: 67 | BQ7: 48 | BR7: 69 | BS7: 49 | BT7: 50 | BU7: 51 | BV7: 52 | BW7: 74 | BX7: 53 | BY7: 76 | BZ7: 77 | CA7: 78 | CB7: 79 | CC7: 80 | CD7: 81 | CE7: 82 | CF7: 83 | CG7: 84 | CH7: 85 | CI7: 86 | CJ7: 87 | CK7: 88 | CL7: 89 | CM7: 90 | CN7: 91 | CO7: 92 | CP7: 93 | CQ7: 94 | CR7: 95 | CS7: 96 | CT7: 97 | CU7: 98 | CV7: 99 | CW7: 100 | CX7: 101 | CY7: 102 | CZ7: 103 | DA7: 104 | DB7: 105 | DC7: 106 | DD7: 107 | DE7: 108 | DF7: 109 | DG7: 110 | DH7: 111 | DI7: 112 | DJ7: 113 | DK7: 114 | DL7: 115 | DM7: 116 | DN7: 117 | DO7: 118 | DP7: 119 | DQ7: 120 | DR7: 121 | DS7: 122 | DT7: 123 | DU7: 124 | DV7: 125 | DW7: 126 | DX7: 127 | DY7: 128 | DZ7: 129 | EA7: 130 | EB7: 131 | EC7: 54 | ED7: 55
B8: час/нед | U8: 31.5 | W8: =W9/16 -> 21 | AB8: 31.5 | AD8: =AD9/20 -> 21 | AI8: 22.5 | AK8: =AK9/16 -> 15 | AP8: 22.5 | AR8: =AR9/20 -> 15 | AW8: 4.5 | AY8: =AY9/16 -> 3 | BD8: 4.5 | BF8: =BF9/20 -> 3 | BM8: =BM9/16 -> 0 | BT8: =BT9/19 -> 0 | BY8: NaN | CA8: NaN | CF8: NaN | CH8: NaN | CM8: NaN | CO8: NaN | CT8: NaN | CV8: NaN | DA8: NaN | DC8: NaN | DH8: NaN | DJ8: NaN | DO8: NaN | DQ8: NaN | DV8: NaN | DX8: NaN
A9: ОУЦ.00 | B9: Общеобразовательный учебный цикл | D9: 3 | E9: 4 | F9: 6 | J9: 14 | L9: 2106 | M9: 0 | N9: 702 | O9: 0 | P9: 1404 | Q9: 1276 | R9: 128 | U9: 504 | V9: 168 | W9: 336 | X9: 320 | Y9: 16 | AA9: 0 | AC9: 210 | AD9: 420 | AE9: 380 | AF9: 40 | AH9: 0 | AJ9: 120 | AK9: 240 | AL9: 208 | AM9: 32 | AO9: 0 | AQ9: 150 | AR9: 300 | AS9: 260 | AT9: 40 | AV9: 0 | AX9: =AX10+AX24 -> 24 | AY9: =AY10+AY24 -> 48 | AZ9: =AZ10+AZ24 -> 48 | BA9: =BA10+BA24 -> 0 | BC9: =BC10+BC24 -> 0 | BE9: =BE10+BE24 -> 30 | BF9: =BF10+BF24 -> 60 | BG9: =BG10+BG24 -> 60 | BH9: =BH10+BH24 -> 0 | BJ9: =BJ10+BJ24 -> 0 | BL9: =BL10+BL24 -> 0 | BM9: =BM10+BM24 -> 0 | BN9: =BN10+BN24 -> 0 | BO9: =BO10+BO24 -> 0 | BQ9: =BQ10+BQ24 -> 0 | BS9: =BS10+BS24 -> 0 | BT9: =BT10+BT24 -> 0 | BU9: =BU10+BU24 -> 0 | BV9: =BV10+BV24 -> 0 | BX9: =BX10+BX24 -> 0 | EC9: 1404 | ED9: =ED10+ED24 -> 0
A10: ОУП.00 | B10: Обязательный учебные предметы | D10: 3 | E10: 4 | F10: 6 | J10: 14 | L10: 1134 | M10: 0 | N10: 378 | O10: 0 | P10: 756 | Q10: 628 | R10: 128 | U10: 264 | V10: 88 | W10: 176 | X10: 160 | Y10: 16 | Z10: 0 | AA10: 0 | AB10: 330 | AC10: 110 | AD10: 220 | AE10: 180 | AF10: 40 | AG10: 0 | AH10: 0 | AI10: 240 | AJ10: 80 | AK10: 160 | AL10: 128 | AM10: 32 | AN10: 0 | AO10: 0 | AP10: 300 | AQ10: 100 | AR10: 200 | AS10: 160 | AT10: 40 | AU10: 0 | AV10: 0 | AW10: =SUM(AW11:AW19) -> 0 | AX10: =SUM(AX11:AX22) -> 24 | AY10: 48 | AZ10: 48 | BA10: 0 | BB10: 0 | BC10: 0 | BD10: 90 | BE10: 30 | BF10: 60 | BG10: 60 | BH10: 0 | BI10: 0 | BJ10: 0 | BK10: 0 | BL10: 0 | BM10: 0 | BN10: 0 | BO10: 0 | BP10: 0 | BQ10: 0 | BR10: 0 | BS10: 0 | BT10: 0 | BU10: 0 | BV10: 0 | BW10: 0 | BX10: 0 | BY10: 0 | BZ10: 0 | CA10: 0 | CB10: 0 | CC10: 0 | CD10: 0 | CE10: 0 | CF10: 0 | CG10: 0 | CH10: =SUM(CH11:CH22) -> 0 | CI10: 0 | CJ10: 0 | CK10: 0 | CL10: 0 | CM10: 0 | CN10: 0 | CO10: 0 | CP10: 0 | CQ10: 0 | CR10: 0 | CS10: 0 | CT10: 0 | CU10: 0 | CV10: 0 | CW10: 0 | CX10: 0 | CY10: 0 | CZ10: 0 | DA10: 0 | DB10: 0 | DC10: 0 | DD10: 0 | DE10: 0 | DF10: 0 | DG10: 0 | DH10: 0 | DI10: 0 | DJ10: 0 | DK10: 0 | DL10: 0 | DM10: 0 | DN10: 0 | DO10: 0 | DP10: 0 | DQ10: 0 | DR10: 0 | DS10: 0 | DT10: 0 | DU10: 0 | DV10: 0 | DW10: 0 | DX10: 0 | DY10: 0 | DZ10: 0 | EA10: 0 | EB10: 0 | EC10: =SUM(EC11:EC19) -> 756 | ED10: 0
A11: ОУП.01 | B11: Русский язык | C11: гр | D11: 4 | J11: 123 | L11: =N11+P11 -> 108 | N11: =V11+AC11+AJ11+AQ11+AX11+BE11+BL11+BS11 -> 36 | P11: =W11+AD11+AK11+AR11+AY11+BF11+BM11+BT11 -> 72 | Q11: 72 | R11: 0 | U11: 24 | V11: 8 | W11: 16 | X11: 16 | AB11: 30 | AC11: 10 | AD11: 20 | AE11: 20 | AI11: 24 | AJ11: 8 | AK11: 16 | AL11: 16 | AP11: 30 | AQ11: 10 | AR11: 20 | AS11: 20 | EC11: 128
A12: ОУП.02 | B12: Литература | C12: гр | D12: 4 | J12: 123 | L12: =N12+P12 -> 132 | N12: =V12+AC12+AJ12+AQ12+AX12+BE12+BL12+BS12 -> 44 | P12: 88 | Q12: 88 | R12: 0 | U12: 48 | V12: 16 | W12: 32 | X12: 32 | AB12: 30 | AC12: 10 | AD12: 20 | AE12: 20 | AI12: 48 | AJ12: 8 | AK12: 16 | AL12: 16 | AP12: 60 | AQ12: 10 | AR12: 20 | AS12: 20 | EC12: 40
A13: ОУП.03 | B13: Родная литература | C13: гр | J13: 4 | L13: 54 | N13: 18 | P13: 36 | Q13: 36 | AJ13: 8 | AK13: 16 | AL13: 16 | AQ13: 10 | AR13: 20 | AS13: 20 | EC13: 68
A14: ОУП.04 | B14: Иностранный язык | C14: мг | F14: 34 | J14: 12 | L14: =N14+P14 -> 192 | N14: =V14+AC14+AJ14+AQ14+AX14+BE14+BL14+BS14 -> 64 | P14: =W14+AD14+AK14+AR14+AY14+BF14+BM14+BT14 -> 128 | Q14: =X14+AE14+AL14+AS14+AZ14+BG14+BN14+BU14 -> 0 | R14: =Y14+AF14+AM14+AT14+BA14+BH14+BO14+BV14 -> 128 | U14: 24 | V14: 8 | W14: 16 | Y14: 16 | AB14: 60 | AC14: 20 | AD14: 40 | AF14: 40 | AI14: 48 | AJ14: 16 | AK14: 32 | AM14: 32 | AP14: 60 | AQ14: 20 | AR14: 40 | AT14: 40 | EC14: 72
A15: ОУП.05 | B15: Обществознание | C15: гр | F15: 4 | L15: 60 | N15: 20 | P15: 40 | Q15: 40 | R15: 0 | AP15: 60 | AQ15: 20 | AR15: 40 | AS15: 40 | EC15: 36
A16: ОУП.06 | B16: Математика | C16: мг | D16: 3 | J16: 12 | L16: 102 | N16: 34 | P16: =W16+AD16+AK16+AR16+AY16+BF16+BM16+BT16 -> 68 | Q16: 68 | R16: 0 | U16: 24 | V16: 8 | W16: 16 | X16: 16 | AB16: 30 | AC16: 10 | AD16: 20 | AE16: 20 | AI16: 48 | AJ16: 16 | AK16: 32 | AL16: 32 | EC16: 144
A17: ОУП.07 | B17: Естествознание | C17: гр | F17: 2 | J17: 1 | L17: =N17+P17 -> 108 | N17: =V17+AC17+AJ17+AQ17+AX17+BE17+BL17+BS17 -> 36 | P17: 72 | Q17: 72 | R17: 0 | U17: 48 | V17: 16 | W17: 32 | X17: 32 | AB17: 60 | AC17: 20 | AD17: 40 | AE17: 40 | EC17: 72
A18: ОУП.08 | B18: Астрономия | C18: гр | F18: 4 | J18: 3 | L18: =N18+P18 -> 54 | N18: =V18+AC18+AJ18+AQ18+AX18+BE18+BL18+BS18 -> 18 | P18: 36 | Q18: 36 | R18: 0 | AI18: 24 | AJ18: 8 | AK18: 16 | AL18: 16 | AP18: 30 | AQ18: 10 | AR18: 20 | AS18: 20 | EC18: 72
A19: ОУП.09 | B19: Основы безопасности и защита Родины | C19: гр | F19: 2 | J19: 1 | L19: 108 | N19: 36 | P19: 72 | Q19: 72 | R19: 0 | U19: 48 | V19: 16 | W19: 32 | X19: 32 | AB19: 60 | AC19: 20 | AD19: 40 | AE19: 40 | EC19: 124
A20: ОУП.10 | B20: Физическая культура | C20: гр | E20: 1234 | L20: 216 | N20: 72 | P20: 144 | Q20: 144 | R20: 0 | U20: 48 | V20: 16 | W20: 32 | X20: 32 | AB20: 60 | AC20: 20 | AD20: 40 | AE20: 40 | AI20: 48 | AJ20: 16 | AK20: 32 | AL20: 32 | AP20: 60 | AQ20: 20 | AR20: 40 | AS20: 40 | EC20: 144
A21: ПУП.00 | B21: Профильные учебные предметы | D21: 8 | F21: 1 | G21: =LEN(#REF!)+LEN(#REF!)+LEN(G26)+LEN(#REF!)+LEN(#REF!)+LEN(#REF!)+LEN(#REF!) ->  | H21: =LEN(#REF!)+LEN(#REF!)+LEN(H26)+LEN(#REF!)+LEN(#REF!)+LEN(#REF!)+LEN(#REF!) ->  | I21: =LEN(#REF!)+LEN(#REF!)+LEN(I26)+LEN(#REF!)+LEN(#REF!)+LEN(#REF!)+LEN(#REF!) ->  | J21: 7 | L21: 972 | M21: =SUM(M21:M26) -> 0 | N21: 324 | O21: =SUM(O21:O26) -> 0 | P21: 648 | Q21: 648 | R21: =SUM(R21:R26) -> 0 | U21: 240 | V21: 80 | W21: 160 | X21: 160 | Y21: =SUM(Y21:Y26) -> 0 | Z21: =SUM(Z21:Z26) -> 0 | AA21: =SUM(AA21:AA26) -> 0 | AB21: =SUM(AB21:AB26) -> 360 | AC21: 100 | AD21: 200 | AE21: 200 | AF21: =SUM(AF21:AF26) -> 0 | AG21: =SUM(AG21:AG26) -> 0 | AH21: =SUM(AH21:AH26) -> 0 | AI21: =SUM(AI21:AI26) -> 192 | AJ21: 40 | AK21: 80 | AL21: 80 | AM21: =SUM(AM21:AM26) -> 0 | AN21: =SUM(AN21:AN26) -> 0 | AO21: =SUM(AO21:AO26) -> 0 | AP21: =SUM(AP21:AP26) -> 240 | AQ21: 50 | AR21: 100 | AS21: 100 | AT21: =SUM(AT21:AT26) -> 0 | AU21: 0 | AV21: 0 | AW21: 72 | AX21: 24 | AY21: 48 | AZ21: 48 | BA21: 0 | BB21: 0 | BC21: 0 | BD21: 90 | BE21: 30 | BF21: 60 | BG21: 60 | BH21: 0 | BI21: 0 | BJ21: 0 | BK21: 0 | BL21: 0 | BM21: 0 | BN21: 0 | BO21: 0 | BP21: 0 | BQ21: 0 | BR21: 0 | BS21: 0 | BT21: 0 | BU21: 0 | BV21: 0 | BW21: 0 | BX21: 0 | BY21: 0 | BZ21: =SUM(BZ21:BZ26) -> 0 | CA21: 0 | CB21: 0 | CC21: 0 | CD21: 0 | CE21: 0 | CF21: 0 | CG21: 0 | CH21: 0 | CI21: 0 | CJ21: 0 | CK21: 0 | CL21: 0 | CM21: 0 | CN21: 0 | CO21: 0 | CP21: 0 | CQ21: 0 | CR21: 0 | CS21: 0 | CT21: 0 | CU21: 0 | CV21: 0 | CW21: 0 | CX21: 0 | CY21: 0 | CZ21: 0 | DA21: 0 | DB21: 0 | DC21: 0 | DD21: 0 | DE21: 0 | DF21: =SUM(DF21:DF26) -> 0 | DG21: 0 | DH21: 0 | DI21: 0 | DJ21: 0 | DK21: 0 | DL21: 0 | DM21: 0 | DN21: 0 | DO21: 0 | DP21: 0 | DQ21: 0 | DR21: 0 | DS21: 0 | DT21: 0 | DU21: 0 | DV21: 0 | DW21: 0 | DX21: 0 | DY21: 0 | DZ21: 0 | EA21: 0 | EB21: 0 | EC21: 648 | ED21: =SUM(ED21:ED26) -> 0
A22: ПУП.01 | B22: История мировой культуры | C22: гр | F22: 4 | J22: 123 | L22: =N22+P22 -> 216 | N22: =V22+AC22+AJ22+AQ22+AX22+BE22+BL22+BS22 -> 72 | P22: =W22+AD22+AK22+AR22+AY22+BF22+BM22+BT22 -> 144 | Q22: 144 | R22: 0 | U22: 48 | V22: 16 | W22: 32 | X22: 32 | AB22: 60 | AC22: 20 | AD22: 40 | AE22: 40 | AI22: 48 | AJ22: 16 | AK22: 32 | AL22: 32 | AP22: 60 | AQ22: 20 | AR22: 40 | AS22: 40 | EC22: 144
A23: ПУП.02 | B23: История | C23: гр | D23: 2 | J23: 1 | L23: =N23+P23 -> 216 | N23: =V23+AC23+AJ23+AQ23+AX23+BE23+BL23+BS23 -> 72 | P23: =W23+AD23+AK23+AR23+AY23+BF23+BM23+BT23 -> 144 | Q23: =X23+AE23+AL23+AS23+AZ23+BG23+BN23+BU23 -> 144 | R23: =Y23+AF23+AM23+AT23+BA23+BH23+BO23+BV23 -> 0 | U23: 96 | V23: 32 | W23: 64 | X23: 64 | AB23: 120 | AC23: 40 | AD23: 80 | AE23: 80 | EC23: 144
A24: ПУП.03 | B24: Народная музыкальная культура | C24: гр | D24: 2 | J24: 1 | L24: =N24+P24 -> 54 | N24: =V24+AC24+AJ24+AQ24+AX24+BE24+BL24+BS24 -> 18 | P24: =W24+AD24+AK24+AR24+AY24+BF24+BM24+BT24 -> 36 | Q24: 36 | R24: 0 | U24: 24 | V24: 8 | W24: 16 | X24: 16 | AB24: 30 | AC24: 10 | AD24: 20 | AE24: 20 | EC24: 36
A25: ПУП.04 | B25: Музыкальная литература (зарубежная и отечественная) | C25: мг | D25: 1246 | J25: 35 | L25: 486 | N25: 162 | P25: 324 | Q25: 324 | R25: 0 | U25: 72 | V25: 24 | W25: 48 | X25: 48 | AB25: 90 | AC25: 30 | AD25: 60 | AE25: 60 | AI25: 72 | AJ25: 24 | AK25: 48 | AL25: 48 | AP25: 90 | AQ25: 30 | AR25: 60 | AS25: 60 | AW25: 72 | AX25: 24 | AY25: 48 | AZ25: 48 | BD25: 90 | BE25: 30 | BF25: 60 | BG25: 60 | EC25: 324
B26: час/нед | U26: 22.5 | W26: 15 | AB26: 22.5 | AD26: 15 | AI26: 31.4 | AK26: 21 | AP26: 31.5 | AR26: 21 | AW26: 49.5 | AY26: 33 | BD26: 49.5 | BF26: 33 | BK26: 54 | BM26: 36 | BR26: 54 | BT26: 36 | BY26: NaN | CA26: NaN | CF26: NaN | CH26: NaN | CM26: NaN | CO26: NaN | CT26: NaN | CV26: NaN | DA26: NaN | DC26: NaN | DH26: NaN | DJ26: NaN | DO26: NaN | DQ26: NaN | DV26: NaN | DX26: NaN
A27: ОГСЭ.00 | B27: Общий гуманитарный и социально-экономический цикл | D27: =LEN(D28)+LEN(D29)+LEN(D30)+LEN(D31)+LEN(D32) -> 1 | E27: =LEN(E28)+LEN(E29)+LEN(E30)+LEN(E31)+LEN(E32) -> 3 | F27: 3 | G27: 0 | H27: 0 | I27: 0 | J27: 3 | L27: =SUM(L28:L32) -> 531 | M27: =SUM(M28:M32) -> 0 | N27: 177 | O27: 0 | P27: 354 | Q27: =SUM(Q28:Q32) -> 192 | R27: 162 | V27: =SUM(V28:V32) -> 0 | W27: =SUM(W28:W32) -> 0 | X27: =SUM(X28:X32) -> 0 | Y27: =SUM(Y28:Y32) -> 0 | AA27: =SUM(AA28:AA32) -> 0 | AC27: =SUM(AC28:AC32) -> 0 | AD27: =SUM(AD28:AD32) -> 0 | AE27: =SUM(AE28:AE32) -> 0 | AF27: =SUM(AF28:AF32) -> 0 | AH27: =SUM(AH28:AH32) -> 0 | AI27: 59 | AJ27: =SUM(AJ28:AJ32) -> 24 | AK27: =SUM(AK28:AK32) -> 48 | AL27: =SUM(AL28:AL32) -> 48 | AM27: =SUM(AM28:AM32) -> 0 | AO27: =SUM(AO28:AO32) -> 0 | AQ27: =SUM(AQ28:AQ32) -> 0 | AR27: =SUM(AR28:AR32) -> 0 | AS27: =SUM(AS28:AS32) -> 0 | AT27: =SUM(AT28:AT32) -> 0 | AV27: =SUM(AV28:AV32) -> 0 | AW27: 167 | AX27: =SUM(AX28:AX32) -> 56 | AY27: =SUM(AY28:AY32) -> 112 | AZ27: =SUM(AZ28:AZ32) -> 48 | BA27: =SUM(BA28:BA32) -> 64 | BC27: =SUM(BC28:BC32) -> 0 | BE27: =SUM(BE28:BE32) -> 30 | BF27: =SUM(BF28:BF32) -> 60 | BG27: =SUM(BG28:BG32) -> 0 | BH27: =SUM(BH28:BH32) -> 60 | BJ27: =SUM(BJ28:BJ32) -> 0 | BL27: =SUM(BL28:BL32) -> 48 | BM27: =SUM(BM28:BM32) -> 96 | BN27: =SUM(BN28:BN32) -> 96 | BO27: =SUM(BO28:BO32) -> 0 | BQ27: =SUM(BQ28:BQ32) -> 0 | BR27: 52 | BS27: =SUM(BS28:BS32) -> 19 | BT27: =SUM(BT28:BT32) -> 38 | BU27: =SUM(BU28:BU32) -> 0 | BV27: =SUM(BV28:BV32) -> 38 | BX27: =SUM(BX28:BX32) -> 0 | EC27: =SUM(EC28:EC32) -> 354 | ED27: =SUM(ED28:ED32) -> 0
A28: ОГСЭ.01 | B28: Основы философии | C28: гр | F28: 5 | L28: =N28+P28 -> 72 | N28: 24 | P28: =W28+AD28+AK28+AR28+AY28+BF28+BM28+BT28 -> 48 | Q28: 48 | R28: 0 | AW28: 59 | AX28: 24 | AY28: 48 | AZ28: 48 | EC28: 48
A29: ОГСЭ.02 | B29: История | C29: гр | D29: 3 | L29: =N29+P29 -> 72 | N29: 24 | P29: 48 | Q29: 48 | R29: 0 | AI29: 59 | AJ29: 24 | AK29: 48 | AL29: 48 | EC29: 48
A30: ОГСЭ.03 | B30: Психология общения | C30: гр | F30: 7 | L30: =N30+P30 -> 72 | N30: 24 | P30: 48 | Q30: 48 | R30: 0 | BK30: 59 | BL30: 24 | BM30: 48 | BN30: 48 | EC30: 48
A31: ОГСЭ.04 | B31: Иностранный язык | C31: мг | F31: 8 | J31: 567 | L31: 159 | N31: 53 | P31: 106 | Q31: 16 | R31: 90 | AW31: 44 | AX31: 16 | AY31: 32 | BA31: 32 | BD31: 28 | BE31: 10 | BF31: 20 | BH31: 20 | BK31: 22 | BL31: 8 | BM31: 16 | BN31: 16 | BR31: 52 | BS31: 19 | BT31: 38 | BV31: 38 | EC31: 106
A32: ОГСЭ.05 | B32: Физическая культура | C32: гр | E32: 567 | L32: =N32+P32 -> 156 | N32: 52 | P32: 104 | Q32: 32 | R32: 72 | AW32: 64 | AX32: 16 | AY32: 32 | BA32: 32 | BD32: 80 | BE32: 20 | BF32: 40 | BH32: 40 | BK32: 64 | BL32: 16 | BM32: 32 | BN32: 32 | EC32: 104
A33: П | B33: Профессиональный цикл
A34: ОП.00 | B34: Общепрофессиональные дисциплины | D34: =LEN(D35)+LEN(D36)+LEN(#REF!)+LEN(D37)+LEN(D38)+LEN(D39)+LEN(D40)+LEN(D44) ->  | E34: =LEN(E35)+LEN(E36)+LEN(#REF!)+LEN(E37)+LEN(E38)+LEN(E39)+LEN(E40)+LEN(E44) ->  | F34: =LEN(F35)+LEN(F36)+LEN(#REF!)+LEN(F37)+LEN(F38)+LEN(F39)+LEN(F40)+LEN(F44) ->  | G34: =LEN(G35)+LEN(G36)+LEN(#REF!)+LEN(G37)+LEN(G38)+LEN(G39)+LEN(G40)+LEN(G44) ->  | H34: =LEN(H35)+LEN(H36)+LEN(#REF!)+LEN(H37)+LEN(H38)+LEN(H39)+LEN(H40)+LEN(H44) ->  | I34: =LEN(I35)+LEN(I36)+LEN(#REF!)+LEN(I37)+LEN(I38)+LEN(I39)+LEN(I40)+LEN(I44) ->  | J34: =LEN(J35)+LEN(J36)+LEN(#REF!)+LEN(J37)+LEN(J38)+LEN(J39)+LEN(J40)+LEN(J44) ->  | L34: 1954 | M34: =SUM(M35:M44) -> 0 | N34: 652 | O34: =SUM(O35:O44) -> 0 | P34: 1302 | Q34: =SUM(Q35:Q44) -> 173 | R34: =SUM(R35:R44) -> 1129 | U34: 108 | V34: =SUM(V35:V44) -> 56 | W34: =SUM(W35:W44) -> 112 | X34: =SUM(X35:X44) -> 16 | Y34: =SUM(Y35:Y44) -> 96 | AA34: =SUM(AA35:AA44) -> 0 | AB34: 135 | AC34: =SUM(AC35:AC44) -> 70 | AD34: =SUM(AD35:AD44) -> 140 | AE34: =SUM(AE35:AE44) -> 20 | AF34: =SUM(AF35:AF44) -> 120 | AH34: =SUM(AH35:AH44) -> 0 | AI34: 120 | AJ34: =SUM(AJ35:AJ44) -> 48 | AK34: =SUM(AK35:AK44) -> 96 | AL34: =SUM(AL35:AL44) -> 0 | AM34: =SUM(AM35:AM44) -> 96 | AO34: =SUM(AO35:AO44) -> 0 | AP34: 150 | AQ34: =SUM(AQ35:AQ44) -> 70 | AR34: =SUM(AR35:AR44) -> 140 | AS34: =SUM(AS35:AS44) -> 0 | AT34: =SUM(AT35:AT44) -> 140 | AV34: =SUM(AV35:AV44) -> 0 | AW34: 144 | AX34: =SUM(AX35:AX44) -> 64 | AY34: =SUM(AY35:AY44) -> 128 | AZ34: =SUM(AZ35:AZ44) -> 16 | BA34: =SUM(BA35:BA44) -> 112 | BC34: =SUM(BC35:BC44) -> 0 | BD34: 180 | BE34: =SUM(BE35:BE44) -> 90 | BF34: =SUM(BF35:BF44) -> 180 | BG34: =SUM(BG35:BG44) -> 20 | BH34: =SUM(BH35:BH44) -> 160 | BJ34: =SUM(BJ35:BJ44) -> 0 | BK34: 264 | BL34: =SUM(BL35:BL44) -> 120 | BM34: =SUM(BM35:BM44) -> 240 | BN34: =SUM(BN35:BN44) -> 80 | BO34: =SUM(BO35:BO44) -> 160 | BQ34: =SUM(BQ35:BQ44) -> 0 | BR34: 256 | BS34: =SUM(BS35:BS44) -> 134 | BT34: =SUM(BT35:BT44) -> 266 | BU34: =SUM(BU35:BU44) -> 57 | BV34: =SUM(BV35:BV44) -> 209 | BX34: =SUM(BX35:BX44) -> 0 | EC34: =SUM(EC35:EC44) -> 1369 | ED34: =SUM(ED35:ED44) -> 0
A35: ОП.01 | B35: Музыкальная литература (зарубежная и отечественная) | C35: мг | D35: 78 | L35: =N35+P35 -> 158 | N35: =V35+AC35+AJ35+AQ35+AX35+BE35+BL35+BS35 -> 53 | P35: =W35+AD35+AK35+AR35+AY35+BF35+BM35+BT35 -> 105 | Q35: =X35+AE35+AL35+AS35+AZ35+BG35+BN35+BU35 -> 105 | R35: =Y35+AF35+AM35+AT35+BA35+BH35+BO35+BV35 -> 0 | BK35: 72 | BL35: 24 | BM35: 48 | BN35: 48 | BR35: 85 | BS35: 29 | BT35: 57 | BU35: 57 | EC35: 105
A36: ОП.02 | B36: Сольфеджио | C36: мг | D36: 357 | F36: 2 | J36: 1468 | L36: =N36+P36 -> 429 | N36: =V36+AC36+AJ36+AQ36+AX36+BE36+BL36+BS36 -> 143 | P36: =W36+AD36+AK36+AR36+AY36+BF36+BM36+BT36 -> 286 | Q36: =X36+AE36+AL36+AS36+AZ36+BG36+BN36+BU36 -> 0 | R36: =Y36+AF36+AM36+AT36+BA36+BH36+BO36+BV36 -> 286 | U36: 48 | V36: 16 | W36: 32 | Y36: 32 | AB36: 60 | AC36: 20 | AD36: 40 | AF36: 40 | AI36: 48 | AJ36: 16 | AK36: 32 | AM36: 32 | AP36: 60 | AQ36: 20 | AR36: 40 | AT36: 40 | AW36: 48 | AX36: 16 | AY36: 32 | BA36: 32 | BD36: 60 | BE36: 20 | BF36: 40 | BH36: 40 | BK36: 48 | BL36: 16 | BM36: 32 | BO36: 32 | BS36: 19 | BT36: 38 | BV36: 38 | EC36: 248
A37: ОП.03 | B37: Элементарная теория музыки | C37: мг | D37: 2 | F37: 1 | L37: 108 | N37: 36 | P37: 72 | Q37: 0 | R37: 72 | U37: 48 | V37: 16 | W37: 32 | Y37: 32 | AB37: 60 | AC37: 20 | AD37: 40 | AF37: 40 | EC37: 72
A38: ОП.04 | B38: Гармония | C38: мг | D38: 57 | J38: 3468 | L38: 321 | N38: 107 | P38: 214 | Q38: 0 | R38: 214 | AI38: 48 | AJ38: 16 | AK38: 32 | AM38: 32 | AP38: 60 | AQ38: 20 | AR38: 40 | AT38: 40 | AW38: 48 | AX38: 16 | AY38: 32 | BA38: 32 | BD38: 60 | BE38: 20 | BF38: 40 | BH38: 40 | BK38: 48 | BL38: 16 | BM38: 32 | BO38: 32 | BS38: 19 | BT38: 38 | BV38: 38 | EC38: 176
A39: ОП.05 | B39: Анализ музыкальных произведений | C39: мг | D39: 8 | F39: 7 | J39: 456 | L39: 191 | N39: 64 | P39: 127 | Q39: 0 | R39: 127 | AQ39: 10 | AR39: 20 | AT39: 20 | AX39: 8 | AY39: 16 | BA39: 16 | BE39: 20 | BF39: 40 | BH39: 40 | BK39: 48 | BL39: 16 | BM39: 32 | BO39: 32 | BR39: 57 | BS39: 10 | BT39: 19 | BV39: 19 | EC39: 127
A40: ОП.06 | B40: Народное музыкальное творчество | C40: мг | F40: 2 | J40: 1 | L40: 54 | N40: 18 | P40: 36 | R40: 36 | V40: 8 | W40: 16 | X40: 16 | AB40: 30 | AC40: 10 | AD40: 20 | AE40: 20 | BR40: 114 | EC40: 36
A41: ОП.07 | B41: Современная гармония | C41: мг | J41: 8 | L41: 57 | N41: 19 | P41: 38 | R41: 38 | BS41: 19 | BT41: 38 | BV41: 38 | EC41: 38
A42: ОП.08 | B42: Полифония | C42: мг | F42: 8 | J42: 7 | L42: 105 | N42: 35 | P42: 70 | R42: 70 | BL42: 16 | BM42: 32 | BO42: 32 | BS42: 19 | BT42: 38 | BV42: 38 | EC42: 70
A43: ОП.09 | B43: Фортепиано | C43: инд | D43: 568 | F43: 3 | J43: 1247 | L43: 429 | N43: 143 | P43: 286 | R43: 286 | V43: 16 | W43: 32 | Y43: 32 | AC43: 20 | AD43: 40 | AF43: 40 | AJ43: 16 | AK43: 32 | AM43: 32 | AQ43: 20 | AR43: 40 | AT43: 40 | AX43: 16 | AY43: 32 | BA43: 32 | BE43: 20 | BF43: 40 | BH43: 40 | BL43: 16 | BM43: 32 | BO43: 32 | BS43: 19 | BT43: 38 | BV43: 38 | EC43: 429
A44: ОП.10 | B44: Безопасность жизнедеятельности | C44: гр | F44: 7 | J44: 56 | L44: 102 | N44: 34 | P44: 68 | Q44: 68 | R44: 0 | AW44: 24 | AX44: 8 | AY44: 16 | AZ44: 16 | BD44: 30 | BE44: 10 | BF44: 20 | BG44: 20 | BK44: 48 | BL44: 16 | BM44: 32 | BN44: 32 | EC44: 68
A45: ПМ | B45: Профессиональные модули
A46: ПМ.01 | B46: Педагогическая деятельность | D46: =LEN(D47)+LEN(D48)+LEN(D49)+LEN(D50)+LEN(D51)+LEN(D52)+LEN(D53)+LEN(D54) -> 3 | E46: 0 | F46: 4 | G46: 0 | H46: 0 | I46: 0 | J46: 9 | L46: =SUM(L47:L54) -> 618 | M46: =SUM(M47:M54) -> 0 | N46: =SUM(N47:N54) -> 206 | O46: 0 | P46: =SUM(P47:P54) -> 412 | Q46: 374 | R46: 38 | S46: 0 | U46: 127 | V46: =SUM(V47:V54) -> 0 | W46: =SUM(W47:W54) -> 0 | X46: =SUM(X47:X54) -> 0 | Y46: =SUM(Y47:Y54) -> 0 | AA46: =SUM(AA47:AA54) -> 0 | AC46: =SUM(AC47:AC54) -> 0 | AD46: =SUM(AD47:AD54) -> 0 | AE46: =SUM(AE47:AE54) -> 0 | AF46: =SUM(AF47:AF54) -> 0 | AH46: =SUM(AH47:AH54) -> 0 | AJ46: =SUM(AJ47:AJ54) -> 48 | AK46: =SUM(AK47:AK54) -> 96 | AL46: =SUM(AL47:AL54) -> 96 | AM46: =SUM(AM47:AM54) -> 0 | AO46: =SUM(AO47:AO54) -> 0 | AQ46: =SUM(AQ47:AQ54) -> 50 | AR46: =SUM(AR47:AR54) -> 100 | AS46: =SUM(AS47:AS54) -> 100 | AT46: =SUM(AT47:AT54) -> 0 | AV46: =SUM(AV47:AV54) -> 0 | AX46: =SUM(AX47:AX54) -> 24 | AY46: =SUM(AY47:AY54) -> 48 | AZ46: =SUM(AZ47:AZ54) -> 48 | BA46: =SUM(BA47:BA54) -> 0 | BC46: =SUM(BC47:BC54) -> 0 | BE46: =SUM(BE47:BE54) -> 30 | BF46: =SUM(BF47:BF54) -> 60 | BG46: =SUM(BG47:BG54) -> 60 | BH46: =SUM(BH47:BH54) -> 0 | BJ46: =SUM(BJ47:BJ54) -> 0 | BL46: =SUM(BL47:BL54) -> 16 | BM46: =SUM(BM47:BM54) -> 32 | BN46: =SUM(BN47:BN54) -> 32 | BO46: =SUM(BO47:BO54) -> 0 | BQ46: =SUM(BQ47:BQ54) -> 0 | BS46: =SUM(BS47:BS54) -> 38 | BT46: =SUM(BT47:BT54) -> 76 | BU46: =SUM(BU47:BU54) -> 38 | BV46: =SUM(BV47:BV54) -> 38 | BX46: =SUM(BX47:BX54) -> 0 | EC46: =SUM(EC47:EC54) -> 412 | ED46: =SUM(ED47:ED54) -> 0
A47: МДК.01.01. | B47: Педагогические основы преподавания творческих дисциплин: основы педагогики | C47: гр | J47: 34 | L47: =N47+P47 -> 108 | N47: =V47+AC47+AJ47+AQ47+AX47+BE47+BL47+BS47 -> 36 | P47: =W47+AD47+AK47+AR47+AY47+BF47+BM47+BT47 -> 72 | Q47: =X47+AE47+AL47+AS47+AZ47+BG47+BN47+BU47 -> 72 | R47: =Y47+AF47+AM47+AT47+BA47+BH47+BO47+BV47 -> 0 | AI47: 48 | AJ47: 16 | AK47: 32 | AL47: 32 | AP47: 60 | AQ47: 20 | AR47: 40 | AS47: 40 | EC47: 72
B48: Педагогические основы преподавания творческих дисциплин: основы системы музыкального образования | C48: гр | D48: 6 | J48: 5 | L48: =N48+P48 -> 108 | N48: =V48+AC48+AJ48+AQ48+AX48+BE48+BL48+BS48 -> 36 | P48: =W48+AD48+AK48+AR48+AY48+BF48+BM48+BT48 -> 72 | Q48: =X48+AE48+AL48+AS48+AZ48+BG48+BN48+BU48 -> 72 | R48: =Y48+AF48+AM48+AT48+BA48+BH48+BO48+BV48 -> 0 | AW48: 48 | AX48: 16 | AY48: 32 | AZ48: 32 | BD48: 60 | BE48: 20 | BF48: 40 | BG48: 40 | EC48: 72
B49: Педагогические основы преподавания творческих дисциплин: возрастная психология | C49: гр | J49: 56 | L49: 54 | N49: 18 | P49: 36 | Q49: 36 | R49: 0 | AW49: 24 | AX49: 8 | AY49: 16 | AZ49: 16 | BD49: 30 | BE49: 10 | BF49: 20 | BG49: 20 | EC49: 36
B50: Педагогические основы преподавания творческих ди сциплин: основы организации учебного процесса | C50: гр | J50: 7 | L50: 48 | N50: 16 | P50: 32 | Q50: 32 | R50: 0 | BK50: 48 | BL50: 16 | BM50: 32 | BN50: 32 | EC50: 32
B51: Педагогические основы преподавания творческих дисциплин: основы психологии музыкального восприятия | C51: гр | F51: 8 | L51: 57 | N51: 19 | P51: 38 | Q51: 38 | R51: 0 | BR51: 57 | BS51: 19 | BT51: 38 | BU51: 38 | EC51: 38
A52: МДК.01.02 | B52: Учебно-методическое обеспечение учебного процесса: Методика преподавания музыкальной литературы | C52: мг | D52: 4 | J52: 3 | L52: =N52+P52 -> 78 | N52: =V52+AC52+AJ52+AQ52+AX52+BE52+BL52+BS52 -> 26 | P52: =W52+AD52+AK52+AR52+AY52+BF52+BM52+BT52 -> 52 | Q52: =X52+AE52+AL52+AS52+AZ52+BG52+BN52+BU52 -> 52 | R52: =Y52+AF52+AM52+AT52+BA52+BH52+BO52+BV52 -> 0 | U52: 16 | AI52: 16 | AJ52: 16 | AK52: 32 | AL52: 32 | AP52: 30 | AQ52: 10 | AR52: 20 | AS52: 20 | EC52: 52
B53: Учебно-методическое обеспечение учебного процесса: Методика преподавания сольфеджио и ритмики | C53: мг | D53: 4 | J53: 3 | L53: 108 | N53: 36 | P53: 72 | Q53: 72 | R53: 0 | AJ53: 16 | AK53: 32 | AL53: 32 | AP53: 30 | AQ53: 20 | AR53: 40 | AS53: 40 | BR53: 28 | EC53: 72
B54: Изучение методической литературы по музыкально-теоретическим дисциплинам | C54: мг | J54: 8 | L54: 57 | N54: 19 | P54: 38 | Q54: 0 | R54: 38 | AW54: 24 | BS54: 19 | BT54: 38 | BV54: 38 | EC54: 38
A55: ПМ.02 | B55: Организационная, музыкально-просветительская, репетиционно-концертная деятельность в творческом коллективе | D55: =LEN(D56)+LEN(D57)+LEN(D58)+LEN(D59)+LEN(#REF!)+LEN(D60)+LEN(D61)+LEN(D62)+LEN(D70) ->  | E55: =LEN(E56)+LEN(E57)+LEN(E58)+LEN(E59)+LEN(#REF!)+LEN(E60)+LEN(E61)+LEN(E62)+LEN(E70) ->  | F55: =LEN(F56)+LEN(F57)+LEN(F58)+LEN(F59)+LEN(#REF!)+LEN(F60)+LEN(F61)+LEN(F62)+LEN(F70) ->  | G55: =LEN(G56)+LEN(G57)+LEN(G58)+LEN(G59)+LEN(#REF!)+LEN(G60)+LEN(G61)+LEN(G62)+LEN(G70) ->  | H55: =LEN(H56)+LEN(H57)+LEN(H58)+LEN(H59)+LEN(#REF!)+LEN(H60)+LEN(H61)+LEN(H62)+LEN(H70) ->  | I55: =LEN(I56)+LEN(I57)+LEN(I58)+LEN(I59)+LEN(#REF!)+LEN(I60)+LEN(I61)+LEN(I62)+LEN(I70) ->  | J55: =LEN(J56)+LEN(J57)+LEN(J58)+LEN(J59)+LEN(#REF!)+LEN(J60)+LEN(J61)+LEN(J62)+LEN(J70) ->  | L55: =SUM(L56:L70) -> 1368 | M55: 0 | N55: 456 | O55: 0 | P55: 912 | Q55: 126 | R55: 786 | S55: 0 | U55: 24 | V55: =SUM(V56:V70) -> 64 | W55: =SUM(W56:W70) -> 128 | X55: =SUM(X56:X70) -> 48 | Y55: =SUM(Y56:Y70) -> 80 | AA55: =SUM(AA56:AA70) -> 0 | AC55: =SUM(AC56:AC70) -> 80 | AD55: =SUM(AD56:AD70) -> 160 | AE55: =SUM(AE56:AE70) -> 40 | AF55: =SUM(AF56:AF70) -> 120 | AH55: =SUM(AH56:AH70) -> 0 | AJ55: =SUM(AJ56:AJ70) -> 16 | AK55: =SUM(AK56:AK70) -> 32 | AL55: =SUM(AL56:AL70) -> 0 | AM55: =SUM(AM56:AM70) -> 32 | AO55: =SUM(AO56:AO70) -> 0 | AQ55: =SUM(AQ56:AQ70) -> 60 | AR55: =SUM(AR56:AR70) -> 120 | AS55: =SUM(AS56:AS70) -> 0 | AT55: =SUM(AT56:AT70) -> 120 | AV55: =SUM(AV56:AV70) -> 0 | AX55: =SUM(AX56:AX70) -> 56 | AY55: =SUM(AY56:AY70) -> 112 | AZ55: =SUM(AZ56:AZ70) -> 0 | BA55: =SUM(BA56:BA70) -> 112 | BC55: =SUM(BC56:BC70) -> 0 | BE55: =SUM(BE56:BE70) -> 80 | BF55: =SUM(BF56:BF70) -> 160 | BG55: =SUM(BG56:BG70) -> 0 | BH55: =SUM(BH56:BH70) -> 160 | BJ55: =SUM(BJ56:BJ70) -> 0 | BL55: =SUM(BL56:BL70) -> 24 | BM55: =SUM(BM56:BM70) -> 48 | BN55: =SUM(BN56:BN70) -> 0 | BO55: =SUM(BO56:BO70) -> 48 | BQ55: =SUM(BQ56:BQ70) -> 0 | BS55: =SUM(BS56:BS70) -> 76 | BT55: =SUM(BT56:BT70) -> 152 | BU55: =SUM(BU56:BU70) -> 38 | BV55: =SUM(BV56:BV70) -> 114 | BX55: =SUM(BX56:BX70) -> 0 | EC55: =SUM(EC56:EC70) -> 336 | ED55: =SUM(ED56:ED70) -> 576
A56: МДК.02.01. | B56: Основы организационной деятельности: лекторское дело | C56: мг | F56: 8 | J56: 67 | L56: =N56+P56 -> 111 | N56: =V56+AC56+AJ56+AQ56+AX56+BE56+BL56+BS56 -> 37 | P56: =W56+AD56+AK56+AR56+AY56+BF56+BM56+BT56 -> 74 | Q56: =X56+AE56+AL56+AS56+AZ56+BG56+BN56+BU56 -> 0 | R56: =Y56+AF56+AM56+AT56+BA56+BH56+BO56+BV56 -> 74 | AI56: 48 | BD56: 30 | BE56: 10 | BF56: 20 | BH56: 20 | BL56: 8 | BM56: 16 | BO56: 16 | BS56: 19 | BT56: 38 | BV56: 38 | EC56: 74
B57: Основы организационной деятельности: Организация управленческой и творческой деятельности | C57: мг | F57: 8 | L57: =N57+P57 -> 57 | N57: =V57+AC57+AJ57+AQ57+AX57+BE57+BL57+BS57 -> 19 | P57: =W57+AD57+AK57+AR57+AY57+BF57+BM57+BT57 -> 38 | Q57: =X57+AE57+AL57+AS57+AZ57+BG57+BN57+BU57 -> 38 | R57: =Y57+AF57+AM57+AT57+BA57+BH57+BO57+BV57 -> 0 | AW57: 48 | BR57: 60 | BS57: 19 | BT57: 38 | BU57: 38 | EC57: 38
B58: Основы организационной деятельности: Инструментоведение и чтение оркестровых партитур | C58: мг | J58: 12 | L58: 54 | N58: 18 | P58: 36 | Q58: 16 | R58: 20 | V58: 8 | W58: 16 | X58: 16 | AB58: 30 | AC58: 10 | AD58: 20 | AF58: 20 | AW58: 24 | ED58: 36
B59: Основы организационной деятельности: Основы дирижерской деятельности | C59: инд | J59: 56 | L59: 54 | N59: 18 | P59: 36 | Q59: 0 | R59: 36 | AX59: 8 | AY59: 16 | BA59: 16 | BD59: 30 | BE59: 10 | BF59: 20 | BH59: 20 | BK59: 48 | ED59: 36
A60: МДК.02.02. | B60: Основы музыкально-просветительской и творческой деятельности: музыкальная информатика | C60: мг | F60: 2 | J60: 1 | L60: 108 | N60: 36 | P60: 72 | Q60: 72 | R60: 0 | V60: 16 | W60: 32 | X60: 32 | AB60: 60 | AC60: 20 | AD60: 40 | AE60: 40 | AW60: 96 | EC60: 72
B61: Основы музыкально-просветительской и творческой деятельности: цифровые музыкальные технологии | C61: мг | J61: 4 | L61: 60 | N61: 20 | P61: 40 | Q61: 0 | R61: 40 | AI61: 24 | AQ61: 20 | AR61: 40 | AT61: 40 | BK61: 48 | EC61: 40
B62: Основы музыкально-просветительской и творческой деятельности: сценическая речь | C62: мг | F62: 2 | J62: 1 | L62: 54 | N62: 18 | P62: 36 | Q62: 0 | R62: 36 | V62: 8 | W62: 16 | Y62: 16 | AB62: 30 | AC62: 10 | AD62: 20 | AF62: 20 | BR62: 57 | ED62: 36
B63: Основы музыкально-просветительской и творческой деятельности: постановка голоса | C63: инд | F63: 4 | J63: 12356 | L63: 162 | N63: 54 | P63: 108 | R63: 108 | V63: 8 | W63: 16 | Y63: 16 | AC63: 10 | AD63: 20 | AF63: 20 | AJ63: 8 | AK63: 16 | AM63: 16 | AQ63: 10 | AR63: 20 | AT63: 20 | AX63: 8 | AY63: 16 | BA63: 16 | BE63: 10 | BF63: 20 | BH63: 20 | ED63: 108
B64: Основы музыкально-просветительской и творческой деятельности: хоровой класс | C64: гр | J64: 456 | L64: =N64+P64 -> 168 | N64: =V64+AC64+AJ64+AQ64+AX64+BE64+BL64+BS64 -> 56 | P64: =W64+AD64+AK64+AR64+AY64+BF64+BM64+BT64 -> 112 | Q64: =X64+AE64+AL64+AS64+AZ64+BG64+BN64+BU64 -> 0 | R64: =Y64+AF64+AM64+AT64+BA64+BH64+BO64+BV64 -> 112 | U64: 24 | AB64: 30 | AP64: 30 | AQ64: 20 | AR64: 40 | AT64: 40 | AX64: 16 | AY64: 32 | BA64: 32 | BD64: 30 | BE64: 20 | BF64: 40 | BH64: 40 | ED64: 112
B65: Основы музыкально-просветительской и творческой деятельности: Доп.инструмент (Фортепиано) | C65: инд | F65: 57 | J65: 1268 | L65: 213 | N65: 71 | P65: 142 | R65: 142 | V65: 8 | W65: 16 | Y65: 16 | AB65: 30 | AC65: 10 | AD65: 20 | AF65: 20 | AX65: 8 | AY65: 16 | BA65: 16 | BE65: 10 | BF65: 20 | BH65: 20 | BL65: 16 | BM65: 32 | BO65: 32 | BR65: 30 | BS65: 19 | BT65: 38 | BV65: 38 | EC65: 72 | ED65: 70
B66: Основы музыкально-просветительской и творческой деятельности: Ансамблевое исполнительство (Фортепианный дуэт) | C66: мг | F66: 6 | J66: 5 | L66: 54 | N66: 18 | P66: 36 | R66: 36 | AX66: 8 | AY66: 16 | BA66: 16 | BD66: 30 | BE66: 10 | BF66: 20 | BH66: 20 | ED66: 36
B67: Основы музыкально-просветительской и творческой деятельности: Аккомпанемент | C67: инд | F67: 6 | J67: 5 | L67: 54 | N67: 18 | P67: 36 | R67: 36 | AX67: 8 | AY67: 16 | BA67: 16 | BD67: 30 | BE67: 10 | BF67: 20 | BH67: 20 | ED67: 36
B68: Основы музыкально-просветительской и творческой деятельности: Чтение с листа | C68: инд | J68: 12 | L68: 54 | N68: 18 | P68: 36 | R68: 36 | V68: 8 | W68: 16 | Y68: 16 | AB68: 30 | AC68: 10 | AD68: 20 | AF68: 20 | ED68: 36
B69: Основы музыкально-просветительской и творческой деятельности: Музыка XX века | C69: мг | F69: 8 | L69: 57 | N69: 19 | P69: 38 | R69: 38 | BS69: 19 | BT69: 38 | BV69: 38 | ED69: 38
B70: Основы музыкально-просветительской и творческой деятельности: основы композиции | C70: мг | F70: 4 | J70: 123 | L70: 108 | N70: 36 | P70: 72 | Q70: 0 | R70: 72 | U70: 24 | V70: 8 | W70: 16 | Y70: 16 | AB70: 30 | AC70: 10 | AD70: 20 | AF70: 20 | AJ70: 8 | AK70: 16 | AM70: 16 | AP70: 30 | AQ70: 10 | AR70: 20 | AT70: 20 | EC70: 40 | ED70: 32
A71: ПМ .03 | B71: Корреспондентская деятельность в средствах массовой информации сферы музыкальной культуры | D71: =LEN(D74)+LEN(D75)+LEN(D77)+LEN(D78)+LEN(D79) -> 1 | E71: 1 | F71: 1 | G71: 1 | H71: 1 | I71: 1 | J71: 18 | L71: 120 | M71: =SUM(M74:M79) -> 0 | N71: 40 | O71: 0 | P71: 80 | Q71: 80 | U71: 72 | V71: =SUM(V74:V79) -> 0 | W71: =SUM(W74:W79) -> 0 | X71: =SUM(X74:X79) -> 0 | Y71: =SUM(Y74:Y79) -> 0 | AA71: =SUM(AA74:AA79) -> 0 | AC71: =SUM(AC74:AC79) -> 0 | AD71: =SUM(AD74:AD79) -> 0 | AE71: =SUM(AE74:AE79) -> 0 | AF71: =SUM(AF74:AF79) -> 0 | AH71: =SUM(AH74:AH79) -> 0 | AJ71: =SUM(AJ74:AJ79) -> 56 | AK71: =SUM(AK74:AK79) -> 112 | AL71: =SUM(AL74:AL79) -> 0 | AM71: =SUM(AM74:AM79) -> 112 | AO71: =SUM(AO74:AO79) -> 0 | AQ71: =SUM(AQ74:AQ79) -> 50 | AR71: =SUM(AR74:AR79) -> 100 | AS71: =SUM(AS74:AS79) -> 0 | AT71: =SUM(AT74:AT79) -> 100 | AV71: =SUM(AV74:AV79) -> 0 | AX71: =SUM(AX74:AX79) -> 96 | AY71: =SUM(AY74:AY79) -> 192 | AZ71: =SUM(AZ74:AZ79) -> 0 | BA71: =SUM(BA74:BA79) -> 192 | BC71: =SUM(BC74:BC79) -> 0 | BE71: =SUM(BE74:BE79) -> 100 | BF71: =SUM(BF74:BF79) -> 200 | BG71: =SUM(BG74:BG79) -> 0 | BH71: =SUM(BH74:BH79) -> 200 | BJ71: =SUM(BJ74:BJ79) -> 0 | BL71: =SUM(BL74:BL79) -> 128 | BM71: =SUM(BM74:BM79) -> 256 | BN71: =SUM(BN74:BN79) -> 0 | BO71: =SUM(BO74:BO79) -> 256 | BQ71: =SUM(BQ74:BQ79) -> 0 | BS71: =SUM(BS74:BS79) -> 114 | BT71: =SUM(BT74:BT79) -> 228 | BU71: =SUM(BU74:BU79) -> 0 | BV71: =SUM(BV74:BV79) -> 228 | BX71: =SUM(BX74:BX79) -> 0 | EC71: =SUM(EC72:EC73) -> 80 | ED71: =SUM(ED74:ED79) -> 0
A72: МДК.03.01. | B72: Основы журналистской деятельности в области музыкального искусства: музыкальная журналистика | C72: мг | F72: 6 | L72: =N72+P72 -> 60 | N72: =V72+AC72+AJ72+AQ72+AX72+BE72+BL72+BS72 -> 20 | P72: =W72+AD72+AK72+AR72+AY72+BF72+BM72+BT72 -> 40 | Q72: 40 | R72: 0 | AI72: 48 | AP72: 60 | BE72: 20 | BF72: 40 | BG72: 40 | EC72: 40
B73: Основы журналистской деятельности в области музыкального искусства: основы музыкальной критики | C73: мг | F73: 6 | L73: =N73+P73 -> 60 | N73: =V73+AC73+AJ73+AQ73+AX73+BE73+BL73+BS73 -> 20 | P73: 40 | Q73: 40 | R73: 0 | AI73: 48 | AP73: 60 | BE73: 20 | BF73: 40 | BG73: 40 | EC73: 40
A74: УП .00 | B74: Учебная практика | D74: =LEN(D75)+LEN(D77)+LEN(D78)+LEN(D79)+LEN(D82) -> 0 | E74: 0 | F74: 1 | G74: 0 | H74: 0 | I74: 0 | J74: 16 | L74: =SUM(L75:L82) -> 1026 | M74: 0 | N74: 342 | O74: 0 | P74: 684 | Q74: 0 | R74: 684 | U74: 72 | V74: =SUM(V75:V82) -> 0 | W74: =SUM(W75:W82) -> 0 | X74: =SUM(X75:X82) -> 0 | Y74: =SUM(Y75:Y82) -> 0 | AA74: =SUM(AA75:AA82) -> 0 | AC74: =SUM(AC75:AC82) -> 0 | AD74: =SUM(AD75:AD82) -> 0 | AE74: =SUM(AE75:AE82) -> 0 | AF74: =SUM(AF75:AF82) -> 0 | AH74: =SUM(AH75:AH82) -> 0 | AJ74: =SUM(AJ75:AJ82) -> 32 | AK74: =SUM(AK75:AK82) -> 64 | AL74: =SUM(AL75:AL82) -> 0 | AM74: =SUM(AM75:AM82) -> 64 | AO74: =SUM(AO75:AO82) -> 0 | AQ74: =SUM(AQ75:AQ82) -> 30 | AR74: =SUM(AR75:AR82) -> 60 | AS74: =SUM(AS75:AS82) -> 0 | AT74: =SUM(AT75:AT82) -> 60 | AV74: =SUM(AV75:AV82) -> 0 | AX74: =SUM(AX75:AX82) -> 64 | AY74: =SUM(AY75:AY82) -> 128 | AZ74: =SUM(AZ75:AZ82) -> 0 | BA74: =SUM(BA75:BA82) -> 128 | BC74: =SUM(BC75:BC82) -> 0 | BE74: =SUM(BE75:BE82) -> 60 | BF74: =SUM(BF75:BF82) -> 120 | BG74: =SUM(BG75:BG82) -> 0 | BH74: =SUM(BH75:BH82) -> 120 | BJ74: =SUM(BJ75:BJ82) -> 0 | BL74: =SUM(BL75:BL82) -> 80 | BM74: =SUM(BM75:BM82) -> 160 | BN74: =SUM(BN75:BN82) -> 0 | BO74: =SUM(BO75:BO82) -> 160 | BQ74: =SUM(BQ75:BQ82) -> 0 | BS74: =SUM(BS75:BS82) -> 76 | BT74: =SUM(BT75:BT82) -> 152 | BU74: =SUM(BU75:BU82) -> 0 | BV74: =SUM(BV75:BV82) -> 152 | BX74: =SUM(BX75:BX82) -> 0 | EC74: =SUM(EC75:EC82) -> 684 | ED74: =SUM(ED75:ED82) -> 0
A75: УП. 01 | B75: Музыкальная литература (в том числе учебная практика по педагогической работе) | C75: мг | J75: 345678 | L75: =N75+P75 -> 238 | N75: =V75+AC75+AJ75+AQ75+AX75+BE75+BL75+BS75 -> 79 | P75: =W75+AD75+AK75+AR75+AY75+BF75+BM75+BT75 -> 159 | Q75: 0 | R75: 159 | U75: 24 | AB75: 30 | AI75: 24 | AJ75: 16 | AK75: 32 | AM75: 32 | AP75: 30 | AQ75: 10 | AR75: 20 | AT75: 20 | AW75: 24 | AX75: 16 | AY75: 32 | BA75: 32 | BD75: 30 | BE75: 20 | BF75: 40 | BH75: 40 | BK75: 24 | BL75: 8 | BM75: 16 | BO75: 16 | BR75: 29 | BS75: 9 | BT75: 19 | BV75: 19 | EC75: 159
B76: Педагогическая работа: музыкальная литература | C76: мг | J76: 78 | L76: 105 | N76: 35 | P76: 70 | R76: 70 | BL76: 16 | BM76: 32 | BO76: 32 | BS76: 19 | BT76: 38 | BV76: 38 | EC76: 70
A77: УП. 02 | B77: Гармония | C77: инд | J77: 34567 | L77: =N77+P77 -> 132 | N77: =V77+AC77+AJ77+AQ77+AX77+BE77+BL77+BS77 -> 44 | P77: 88 | Q77: 0 | R77: 88 | U77: 24 | AJ77: 8 | AK77: 16 | AM77: 16 | AP77: 30 | AQ77: 10 | AR77: 20 | AT77: 20 | AX77: 8 | AY77: 16 | BA77: 16 | BD77: 30 | BE77: 10 | BF77: 20 | BH77: 20 | BL77: 8 | BM77: 16 | BO77: 16 | EC77: 88
A78: УП. 03 | B78: Анализ музыкальных произведений | C78: инд | J78: 567 | L78: =N78+P78 -> 78 | N78: =V78+AC78+AJ78+AQ78+AX78+BE78+BL78+BS78 -> 26 | P78: 52 | Q78: 0 | R78: 52 | U78: 24 | AI78: 24 | AP78: 30 | AW78: 24 | AX78: 8 | AY78: 16 | BA78: 16 | BD78: 60 | BE78: 10 | BF78: 20 | BH78: 20 | BK78: 24 | BL78: 8 | BM78: 16 | BO78: 16 | BR78: 29 | EC78: 52
A79: УП. 04 | B79: Полифония | C79: инд | J79: 78 | L79: =N79+P79 -> 53 | N79: =V79+AC79+AJ79+AQ79+AX79+BE79+BL79+BS79 -> 18 | P79: 35 | Q79: 0 | R79: 35 | AI79: 24 | BK79: 48 | BL79: 8 | BM79: 16 | BO79: 16 | BR79: 114 | BS79: 10 | BT79: 19 | BV79: 19 | EC79: 35
A80: УП. 05 | B80: Сольфеджио и ритмика (в том числе учебная практика по педагогической работе) | C80: мг | F80: 6 | J80: 34578 | L80: =N80+P80 -> 267 | N80: =V80+AC80+AJ80+AQ80+AX80+BE80+BL80+BS80 -> 89 | P80: =W80+AD80+AK80+AR80+AY80+BF80+BM80+BT80 -> 178 | Q80: =X80+AE80+AL80+AS80+AZ80+BG80+BN80+BU80 -> 0 | R80: =Y80+AF80+AM80+AT80+BA80+BH80+BO80+BV80 -> 178 | AJ80: 8 | AK80: 16 | AM80: 16 | AQ80: 10 | AR80: 20 | AT80: 20 | AW80: 48 | AX80: 16 | AY80: 32 | BA80: 32 | BD80: 60 | BE80: 20 | BF80: 40 | BH80: 40 | BK80: 48 | BL80: 16 | BM80: 32 | BO80: 32 | BR80: 57 | BS80: 19 | BT80: 38 | BV80: 38 | EC80: 178
B81: Педагогическая работа: сольфеджио | C81: инд | J81: 78 | L81: 105 | N81: 35 | P81: 70 | R81: 70 | BL81: 16 | BM81: 32 | BO81: 32 | BS81: 19 | BT81: 38 | BV81: 38 | EC81: 70
A82: УП. 06 | B82: Инструментовка | C82: инд | F82: 5 | L82: =N82+P82 -> 48 | N82: =V82+AC82+AJ82+AQ82+AX82+BE82+BL82+BS82 -> 16 | P82: 32 | Q82: 0 | R82: 32 | AW82: 48 | AX82: 16 | AY82: 32 | BA82: 32 | BK82: 48 | BR82: 57 | EC82: 32
A83: ПП | B83: Производственная (по профилю специальности) практика | N83: час | P83: =P84+P85 -> 180 | Q83: нед | R83: =R84+R85 -> 5 | W83: =SUM(W84:W87) -> 20 | Y83: =SUM(Y84:Y85) -> 20 | AD83: =SUM(AD84:AD85) -> 25 | AF83: =SUM(AF84:AF85) -> 25 | AK83: =SUM(AK84:AK85) -> 20 | AM83: =SUM(AM84:AM85) -> 20 | AR83: =SUM(AR84:AR85) -> 25 | AT83: =SUM(AT84:AT85) -> 25 | AY83: =SUM(AY84:AY85) -> 20 | BA83: =SUM(BA84:BA85) -> 20 | BF83: =SUM(BF84:BF85) -> 25 | BH83: =SUM(BH84:BH85) -> 25 | BM83: =SUM(BM84:BM85) -> 20 | BO83: =SUM(BO84:BO85) -> 20 | BT83: =SUM(BT84:BT85) -> 25 | BV83: =SUM(BV84:BV85) -> 25 | BY83: час | CB83: нед | CF83: час | CI83: нед | CM83: час | CP83: нед | CT83: час | CW83: нед | DA83: час | DD83: нед | DH83: час | DK83: нед | DO83: час | DR83: нед | DV83: час | DY83: нед
A84: ПП.01 | B84: Исполнительская (по профилю специальности) | N84: час | P84: =W84+AD84+AK84+AR84+AY84+BF84+BM84+BT84 -> 144 | Q84: нед | R84: 4 | W84: 16 | Y84: 16 | AD84: 20 | AF84: 20 | AK84: 16 | AM84: 16 | AR84: 20 | AT84: 20 | AY84: 16 | BA84: 16 | BF84: 20 | BH84: 20 | BM84: 16 | BO84: 16 | BT84: 20 | BV84: 20
A85: ПП.02 | B85: Педагогическая практика | N85: час | P85: =W85+AD85+AK85+AR85+AY85+BF85+BM85+BT85 -> 36 | Q85: нед | R85: 1 | W85: 4 | Y85: 4 | AD85: 5 | AF85: 5 | AK85: 4 | AM85: 4 | AR85: 5 | AT85: 5 | AY85: 4 | BA85: 4 | BF85: 5 | BH85: 5 | BM85: 4 | BO85: 4 | BT85: 5 | BV85: 5
A86: ПДП.00 | B86: Преддипломная практика | N86: час | P86: =W86+AD86+AK86+AR86+AY86+BF86+BM86+BT86 -> 36 | Q86: нед | R86: 1 | BM86: 16 | BT86: 20
A87: ГИА.00 | B87: Государственная (итоговая) аттестация | Q87: нед | R87: 4 | BU87: нед | BV87: 4 | CB87: нед | CI87: нед | CP87: нед | CW87: нед | DD87: нед | DK87: нед | DR87: нед | DY87: нед
A88: ГИА.01 | B88: Подготовка выпускной квалификационной работы | Q88: нед | R88: 1 | BU88: нед | BV88: 1 | CB88: нед | CI88: нед | CP88: нед | CW88: нед | DD88: нед | DK88: нед | DR88: нед | DY88: нед
A89: ГИА.02 | B89: Защита выпускной квалификационной работы | Q89: нед | R89: 1 | BU89: нед | BV89: 1
A90: ГИА.03 | B90: Государственный экзамен(по видам инструментов) | Q90: нед | R90: 1 | BU90: нед | BV90: 1 | CB90: нед | CI90: нед | CP90: нед | CW90: нед | DD90: нед | DK90: нед | DR90: нед | DY90: нед
A91: ГИА.04 | B91: Государственный экзамен | Q91: нед | R91: 1 | BU91: нед | BV91: 1 | CB91: нед | CI91: нед | CP91: нед | CW91: нед | DD91: нед | DK91: нед | DR91: нед | DY91: нед
B92: ВСЕГО ПО ДИСЦИПЛИНАМ И МДК | D92: 28 | E92: 8 | F92: 24 | G92: =G9+G27+G34+G46+G55+#REF!+G74 ->  | H92: =H9+H27+H34+H46+H55+#REF!+H74 ->  | I92: =I9+I27+I34+I46+I55+#REF!+I74 ->  | J92: 103 | L92: 7722 | N92: 2574 | P92: 5148 | Q92: 2569 | R92: 2579 | U92: 864 | EC92: 4572 | ED92: 576
B93: Экзаменов | U93: 1 | X93: =SUM(IF(IFERROR(MID(D11:D16,SEARCH(1,D11:D16),1),0)="1",1,0),IF(IFERROR(MID(D18:D25,SEARCH(1,D18:D25),1),0)="1",1,0),IF(IFERROR(MID(D28:D32,SEARCH(1,D28:D32),1),0)="1",1,0),IF(IFERROR(MID(D35:D44,SEARCH(1,D35:D44),1),0)="1",1,0),IF(IFERROR(MID(D47:D54,SEARCH(1,D47:D54),1),0)="1",1,0),IF(IFERROR(MID(D56:D70,SEARCH(1,D56:D70),1),0)="1",1,0),IF(IFERROR(MID(#REF!,SEARCH(1,#REF!),1),0)="1",1,0),IF(IFERROR(MID(D75:D82,SEARCH(1,D75:D82),1),0)="1",1,0)) -> 1 | AB93: 4 | AE93: =SUM(IF(IFERROR(MID(D11:D16,SEARCH(2,D11:D16),1),0)="2",1,0),IF(IFERROR(MID(D18:D25,SEARCH(2,D18:D25),1),0)="2",1,0),IF(IFERROR(MID(D28:D32,SEARCH(2,D28:D32),1),0)="2",1,0),IF(IFERROR(MID(D35:D44,SEARCH(2,D35:D44),1),0)="2",1,0),IF(IFERROR(MID(D47:D54,SEARCH(2,D47:D54),1),0)="2",1,0),IF(IFERROR(MID(D56:D70,SEARCH(2,D56:D70),1),0)="2",1,0),IF(IFERROR(MID(#REF!,SEARCH(2,#REF!),1),0)="2",1,0),IF(IFERROR(MID(D75:D82,SEARCH(2,D75:D82),1),0)="2",1,0)) -> 4 | AI93: 1 | AL93: 3 | AP93: 5 | AS93: =SUM(IF(IFERROR(MID(D11:D16,SEARCH(4,D11:D16),1),0)="4",1,0),IF(IFERROR(MID(D18:D25,SEARCH(4,D18:D25),1),0)="4",1,0),IF(IFERROR(MID(D28:D32,SEARCH(4,D28:D32),1),0)="4",1,0),IF(IFERROR(MID(D35:D44,SEARCH(4,D35:D44),1),0)="4",1,0),IF(IFERROR(MID(D47:D54,SEARCH(4,D47:D54),1),0)="4",1,0),IF(IFERROR(MID(D56:D70,SEARCH(4,D56:D70),1),0)="4",1,0),IF(IFERROR(MID(#REF!,SEARCH(4,#REF!),1),0)="4",1,0),IF(IFERROR(MID(D75:D82,SEARCH(4,D75:D82),1),0)="4",1,0)) -> 5 | AW93: 1 | AZ93: =SUM(IF(IFERROR(MID(D11:D16,SEARCH(5,D11:D16),1),0)="5",1,0),IF(IFERROR(MID(D18:D25,SEARCH(5,D18:D25),1),0)="5",1,0),IF(IFERROR(MID(D28:D32,SEARCH(5,D28:D32),1),0)="5",1,0),IF(IFERROR(MID(D35:D44,SEARCH(5,D35:D44),1),0)="5",1,0),IF(IFERROR(MID(D47:D54,SEARCH(5,D47:D54),1),0)="5",1,0),IF(IFERROR(MID(D56:D70,SEARCH(5,D56:D70),1),0)="5",1,0),IF(IFERROR(MID(#REF!,SEARCH(5,#REF!),1),0)="5",1,0),IF(IFERROR(MID(D75:D82,SEARCH(5,D75:D82),1),0)="5",1,0)) -> 3 | BD93: 3 | BG93: =SUM(IF(IFERROR(MID(D11:D16,SEARCH(6,D11:D16),1),0)="6",1,0),IF(IFERROR(MID(D18:D25,SEARCH(6,D18:D25),1),0)="6",1,0),IF(IFERROR(MID(D28:D32,SEARCH(6,D28:D32),1),0)="6",1,0),IF(IFERROR(MID(D35:D44,SEARCH(6,D35:D44),1),0)="6",1,0),IF(IFERROR(MID(D47:D54,SEARCH(6,D47:D54),1),0)="6",1,0),IF(IFERROR(MID(D56:D70,SEARCH(6,D56:D70),1),0)="6",1,0),IF(IFERROR(MID(#REF!,SEARCH(6,#REF!),1),0)="6",1,0),IF(IFERROR(MID(D75:D82,SEARCH(6,D75:D82),1),0)="6",1,0)) -> 3 | BK93: 2 | BN93: =SUM(IF(IFERROR(MID(D11:D16,SEARCH(7,D11:D16),1),0)="7",1,0),IF(IFERROR(MID(D18:D25,SEARCH(7,D18:D25),1),0)="7",1,0),IF(IFERROR(MID(D28:D32,SEARCH(7,D28:D32),1),0)="7",1,0),IF(IFERROR(MID(D35:D44,SEARCH(7,D35:D44),1),0)="7",1,0),IF(IFERROR(MID(D47:D54,SEARCH(7,D47:D54),1),0)="7",1,0),IF(IFERROR(MID(D56:D70,SEARCH(7,D56:D70),1),0)="7",1,0),IF(IFERROR(MID(#REF!,SEARCH(7,#REF!),1),0)="7",1,0),IF(IFERROR(MID(D75:D82,SEARCH(7,D75:D82),1),0)="7",1,0)) -> 3 | BR93: 6 | BU93: 3
B94: Зачётов | U94: 1 | X94: =SUM(IF(IFERROR(MID(E11:E16,SEARCH(1,E11:E16),1),0)="1",1,0),IF(IFERROR(MID(E18:E25,SEARCH(1,E18:E25),1),0)="1",1,0),IF(IFERROR(MID(E28:E32,SEARCH(1,E28:E32),1),0)="1",1,0),IF(IFERROR(MID(E35:E44,SEARCH(1,E35:E44),1),0)="1",1,0),IF(IFERROR(MID(E47:E54,SEARCH(1,E47:E54),1),0)="1",1,0),IF(IFERROR(MID(E56:E70,SEARCH(1,E56:E70),1),0)="1",1,0),IF(IFERROR(MID(#REF!,SEARCH(1,#REF!),1),0)="1",1,0),IF(IFERROR(MID(E75:E82,SEARCH(1,E75:E82),1),0)="1",1,0)) -> 1 | AB94: 4 | AE94: =SUM(IF(IFERROR(MID(E11:E16,SEARCH(2,E11:E16),1),0)="2",1,0),IF(IFERROR(MID(E18:E25,SEARCH(2,E18:E25),1),0)="2",1,0),IF(IFERROR(MID(E28:E32,SEARCH(2,E28:E32),1),0)="2",1,0),IF(IFERROR(MID(E35:E44,SEARCH(2,E35:E44),1),0)="2",1,0),IF(IFERROR(MID(E47:E54,SEARCH(2,E47:E54),1),0)="2",1,0),IF(IFERROR(MID(E56:E70,SEARCH(2,E56:E70),1),0)="2",1,0),IF(IFERROR(MID(#REF!,SEARCH(2,#REF!),1),0)="2",1,0),IF(IFERROR(MID(E75:E82,SEARCH(2,E75:E82),1),0)="2",1,0)) -> 1 | AI94: 1 | AL94: =SUM(IF(IFERROR(MID(E11:E16,SEARCH(3,E11:E16),1),0)="3",1,0),IF(IFERROR(MID(E18:E25,SEARCH(3,E18:E25),1),0)="3",1,0),IF(IFERROR(MID(E28:E32,SEARCH(3,E28:E32),1),0)="3",1,0),IF(IFERROR(MID(E35:E44,SEARCH(3,E35:E44),1),0)="3",1,0),IF(IFERROR(MID(E47:E54,SEARCH(3,E47:E54),1),0)="3",1,0),IF(IFERROR(MID(E56:E70,SEARCH(3,E56:E70),1),0)="3",1,0),IF(IFERROR(MID(#REF!,SEARCH(3,#REF!),1),0)="3",1,0),IF(IFERROR(MID(E75:E82,SEARCH(3,E75:E82),1),0)="3",1,0)) -> 1 | AP94: 5 | AS94: =SUM(IF(IFERROR(MID(E11:E16,SEARCH(4,E11:E16),1),0)="4",1,0),IF(IFERROR(MID(E18:E25,SEARCH(4,E18:E25),1),0)="4",1,0),IF(IFERROR(MID(E28:E32,SEARCH(4,E28:E32),1),0)="4",1,0),IF(IFERROR(MID(E35:E44,SEARCH(4,E35:E44),1),0)="4",1,0),IF(IFERROR(MID(E47:E54,SEARCH(4,E47:E54),1),0)="4",1,0),IF(IFERROR(MID(E56:E70,SEARCH(4,E56:E70),1),0)="4",1,0),IF(IFERROR(MID(#REF!,SEARCH(4,#REF!),1),0)="4",1,0),IF(IFERROR(MID(E75:E82,SEARCH(4,E75:E82),1),0)="4",1,0)) -> 1 | AW94: 1 | AZ94: =SUM(IF(IFERROR(MID(E11:E16,SEARCH(5,E11:E16),1),0)="5",1,0),IF(IFERROR(MID(E18:E25,SEARCH(5,E18:E25),1),0)="5",1,0),IF(IFERROR(MID(E28:E32,SEARCH(5,E28:E32),1),0)="5",1,0),IF(IFERROR(MID(E35:E44,SEARCH(5,E35:E44),1),0)="5",1,0),IF(IFERROR(MID(E47:E54,SEARCH(5,E47:E54),1),0)="5",1,0),IF(IFERROR(MID(E56:E70,SEARCH(5,E56:E70),1),0)="5",1,0),IF(IFERROR(MID(#REF!,SEARCH(5,#REF!),1),0)="5",1,0),IF(IFERROR(MID(E75:E82,SEARCH(5,E75:E82),1),0)="5",1,0)) -> 1 | BD94: 3 | BG94: =SUM(IF(IFERROR(MID(E11:E16,SEARCH(6,E11:E16),1),0)="6",1,0),IF(IFERROR(MID(E18:E25,SEARCH(6,E18:E25),1),0)="6",1,0),IF(IFERROR(MID(E28:E32,SEARCH(6,E28:E32),1),0)="6",1,0),IF(IFERROR(MID(E35:E44,SEARCH(6,E35:E44),1),0)="6",1,0),IF(IFERROR(MID(E47:E54,SEARCH(6,E47:E54),1),0)="6",1,0),IF(IFERROR(MID(E56:E70,SEARCH(6,E56:E70),1),0)="6",1,0),IF(IFERROR(MID(#REF!,SEARCH(6,#REF!),1),0)="6",1,0),IF(IFERROR(MID(E75:E82,SEARCH(6,E75:E82),1),0)="6",1,0)) -> 1 | BK94: 2 | BN94: =SUM(IF(IFERROR(MID(E11:E16,SEARCH(7,E11:E16),1),0)="7",1,0),IF(IFERROR(MID(E18:E25,SEARCH(7,E18:E25),1),0)="7",1,0),IF(IFERROR(MID(E28:E32,SEARCH(7,E28:E32),1),0)="7",1,0),IF(IFERROR(MID(E35:E44,SEARCH(7,E35:E44),1),0)="7",1,0),IF(IFERROR(MID(E47:E54,SEARCH(7,E47:E54),1),0)="7",1,0),IF(IFERROR(MID(E56:E70,SEARCH(7,E56:E70),1),0)="7",1,0),IF(IFERROR(MID(#REF!,SEARCH(7,#REF!),1),0)="7",1,0),IF(IFERROR(MID(E75:E82,SEARCH(7,E75:E82),1),0)="7",1,0)) -> 1 | BR94: 6 | BU94: =SUM(IF(IFERROR(MID(E11:E16,SEARCH(8,E11:E16),1),0)="8",1,0),IF(IFERROR(MID(E18:E25,SEARCH(8,E18:E25),1),0)="8",1,0),IF(IFERROR(MID(E28:E32,SEARCH(8,E28:E32),1),0)="8",1,0),IF(IFERROR(MID(E35:E44,SEARCH(8,E35:E44),1),0)="8",1,0),IF(IFERROR(MID(E47:E54,SEARCH(8,E47:E54),1),0)="8",1,0),IF(IFERROR(MID(E56:E70,SEARCH(8,E56:E70),1),0)="8",1,0),IF(IFERROR(MID(#REF!,SEARCH(8,#REF!),1),0)="8",1,0),IF(IFERROR(MID(E75:E82,SEARCH(8,E75:E82),1),0)="8",1,0)) -> 0
B95: Дифференицрованных зачётов | U95: 1 | X95: 1 | AB95: 4 | AE95: =SUM(IF(IFERROR(MID(F11:F16,SEARCH(2,F11:F16),1),0)="2",1,0),IF(IFERROR(MID(F18:F25,SEARCH(2,F18:F25),1),0)="2",1,0),IF(IFERROR(MID(F28:H32,SEARCH(2,F28:I32),1),0)="2",1,0),IF(IFERROR(MID(F35:F44,SEARCH(2,F35:F44),1),0)="2",1,0),IF(IFERROR(MID(F47:I54,SEARCH(2,F47:F54),1),0)="2",1,0),IF(IFERROR(MID(F56:F70,SEARCH(2,F56:F70),1),0)="2",1,0),IF(IFERROR(MID(#REF!,SEARCH(2,#REF!),1),0)="2",1,0),IF(IFERROR(MID(F75:F82,SEARCH(2,F75:F82),1),0)="2",1,0)) -> 5 | AI95: 1 | AL95: =SUM(IF(IFERROR(MID(F11:F16,SEARCH(3,F11:F16),1),0)="3",1,0),IF(IFERROR(MID(F18:F25,SEARCH(3,F18:F25),1),0)="3",1,0),IF(IFERROR(MID(F28:H32,SEARCH(3,F28:F32),1),0)="3",1,0),IF(IFERROR(MID(F35:F44,SEARCH(3,F35:F44),1),0)="3",1,0),IF(IFERROR(MID(F47:I54,SEARCH(3,F47:F54),1),0)="3",1,0),IF(IFERROR(MID(F56:F70,SEARCH(3,F56:F70),1),0)="3",1,0),IF(IFERROR(MID(#REF!,SEARCH(3,#REF!),1),0)="3",1,0),IF(IFERROR(MID(F75:F82,SEARCH(3,F75:F82),1),0)="3",1,0)) -> 2 | AP95: 5 | AS95: 6 | AW95: 1 | AZ95: =SUM(IF(IFERROR(MID(F11:F16,SEARCH(5,F11:F16),1),0)="5",1,0),IF(IFERROR(MID(F18:F25,SEARCH(5,F18:F25),1),0)="5",1,0),IF(IFERROR(MID(F28:F32,SEARCH(5,F28:F32),1),0)="5",1,0),IF(IFERROR(MID(F35:F44,SEARCH(5,F35:F44),1),0)="5",1,0),IF(IFERROR(MID(F47:F54,SEARCH(5,F47:F54),1),0)="5",1,0),IF(IFERROR(MID(F56:F70,SEARCH(5,F56:F70),1),0)="5",1,0),IF(IFERROR(MID(#REF!,SEARCH(5,#REF!),1),0)="5",1,0),IF(IFERROR(MID(F75:F82,SEARCH(5,F75:F82),1),0)="5",1,0)) -> 3 | BD95: 3 | BG95: 5 | BK95: 2 | BN95: =SUM(IF(IFERROR(MID(F11:F16,SEARCH(7,F11:F16),1),0)="7",1,0),IF(IFERROR(MID(F18:F25,SEARCH(7,F18:F25),1),0)="7",1,0),IF(IFERROR(MID(F28:F32,SEARCH(7,F28:F32),1),0)="7",1,0),IF(IFERROR(MID(F35:F44,SEARCH(7,F35:F44),1),0)="7",1,0),IF(IFERROR(MID(F47:F54,SEARCH(7,F47:I54),1),0)="7",1,0),IF(IFERROR(MID(F56:F70,SEARCH(7,F56:F70),1),0)="7",1,0),IF(IFERROR(MID(#REF!,SEARCH(7,#REF!),1),0)="7",1,0),IF(IFERROR(MID(F75:F82,SEARCH(7,F75:F82),1),0)="7",1,0)) -> 4 | BR95: 6 | BU95: =SUM(IF(IFERROR(MID(F11:F16,SEARCH(8,F11:F16),1),0)="8",1,0),IF(IFERROR(MID(F18:F25,SEARCH(8,F18:F25),1),0)="8",1,0),IF(IFERROR(MID(F28:F32,SEARCH(8,F28:F32),1),0)="8",1,0),IF(IFERROR(MID(F35:F44,SEARCH(8,F35:F44),1),0)="8",1,0),IF(IFERROR(MID(F47:F54,SEARCH(8,F47:I54),1),0)="8",1,0),IF(IFERROR(MID(F56:F70,SEARCH(8,F56:F70),1),0)="8",1,0),IF(IFERROR(MID(#REF!,SEARCH(8,#REF!),1),0)="8",1,0),IF(IFERROR(MID(F75:F82,SEARCH(8,F75:F82),1),0)="8",1,0)) -> 6
B96: Контрольных работ (итоговые письм. классные)
B97: Контрольных работ (домашние)

Sheet Кабинеты
B1: № | C1: Наименование
B2: 1 | C2: Кабинеты: русского языка и литературы;
B3: 2 | C3: математики и информатики;
B4: 3 | C4: иностранного языка;
B5: 4 | C5: истории, географии и обществознания;
B6: 5 | C6: гуманитарных и социально-экономических дисциплин;
B7: 6 | C7: мировой художественной культуры;
B8: 7 | C8: музыкально-теоретических дисциплин;
B9: 8 | C9: музыкальной литературы.
B10: 9 | C10: Учебные классы: для групповых и индивидуальных занятий;
B11: 10 | C11: для проведения оркестровых и ансамблевых занятий;
B12: 10 | C12: Спортивный комплекс: спортивный зал.
B13: 11 | C13: Залы: концертный зал от 100 посадочных мест с концертными роялями, пультами и звукотехническим оборудованием;
B14: 12 | C14: малый концертный зал от 30 посадочных мест с концертным роялем
B15: 13 | C15: библиотека, читальный зал с выходом в сеть Интернет, помещения, соответствующие профилю подготовки, для работы со специализированными материалами (фонотека, видеотека, фильмотека, просмотровый видеозал).

Sheet Start (hidden)
